bitfinex-derivatives/quotes_SOLF0:USTF0_20241101
["timestamp","ask_amount","ask_price","bid_price","bid_amount"]
[1730479424745,3.0192,165.65,165.62,3.0196]
[1730479424935,3.0192,165.65,165.6,14.49665182]
[1730479425143,14.49665182,165.7,165.6,14.49665182]
[1730479425340,14.49665182,165.7,165.6,17.51665182]
[1730479425543,14.49665182,165.68,165.58,14.49665182]
[1730479426543,3.0196,165.63,165.58,17.51695182]
[1730479426749,14.49665182,165.65,165.56,22.56455182]
[1730479427145,14.49665182,165.65,165.57,5.42]
[1730479427649,3.02,165.61,165.57,5.42]
[1730479427945,14.49665182,165.67,165.57,5.42]
[1730479428146,14.49665182,165.65,165.57,5.42]
[1730479428665,3.0198,165.62,165.58,3.0204]
[1730479428952,14.49665182,165.7,165.57,5.42]
[1730479429150,3.0189,165.67,165.63,3.0195]
[1730479429449,14.49665182,165.7,165.58,14.49665182]
[1730479429854,14.49665182,165.67,165.58,14.49665182]
[1730479430445,3.0188,165.67,165.58,14.49665182]
[1730479430753,14.49665182,165.7,165.58,14.49665182]
[1730479431141,14.49665182,165.68,165.58,14.49665182]
[1730479431550,14.49665182,165.7,165.62,3.0195]
[1730479432155,14.49665182,165.7,165.59,5.42]
[1730479432353,14.49665182,165.7,165.6,14.49665182]
[1730479432652,14.49665182,165.72,165.6,14.49665182]
[1730479433246,3.0184,165.69,165.65,3.019]
[1730479433648,14.49665182,165.72,165.6,14.49665182]
[1730479434453,14.49665182,165.77,165.65,14.49665182]
[1730479434648,3.0173,165.75,165.7,3.0181]
[1730479434849,3.0173,165.75,165.7,5.4]
[1730479435052,14.49665182,165.79,165.7,5.4]
[1730479435245,14.49665182,165.81,165.72,14.49665182]
[1730479435648,3.0158,165.84,165.79,3.0164]
[1730479435842,3.0158,165.84,165.78,5.4]
[1730479436243,3.0159,165.83,165.79,3.0165]
[1730479436453,10.45740852,165.85,165.78,5.4]
[1730479436759,14.49665182,165.82,165.72,14.49665182]
[1730479436958,14.49665182,165.8,165.72,3.9374]
[1730479437151,14.49665182,165.78,165.72,3.9374]
[1730479437355,3.0177,165.73,165.72,2.5386]
[1730479437557,14.49665182,165.75,165.67,5.4]
[1730479437946,14.49665182,165.75,165.67,8.4187]
[1730479437947,3.0177,165.73,165.67,8.4187]
[1730479438151,14.49665182,165.75,165.66,3.926]
[1730479438352,3.0184,165.7,165.66,3.926]
[1730479438653,23.1710514,165.76,165.57,43.48]
[1730479438856,23.1710514,165.74,165.6,23.1710514]
[1730479439256,3.0188,165.67,165.6,23.1710514]
[1730479440160,3.0188,165.67,165.62,3.0196]
[1730479440359,3.0186,165.68,165.6,23.1710514]
[1730479440858,3.0197,165.62,165.58,25.7745514]
[1730479441060,23.1710514,165.68,165.58,2.6035]
[1730479441358,3.0202,165.59,165.58,2.6035]
[1730479441663,23.1710514,165.66,165.58,2.6035]
[1730479441966,3.0194,165.64,165.58,2.6035]
[1730479442160,23.1710514,165.69,165.58,2.6035]
[1730479442668,23.9969514,165.69,165.58,2.6035]
[1730479443049,3.02,165.61,165.58,2.6035]
[1730479443864,24.0769514,165.69,165.58,2.6035]
[1730479444056,3.02,165.6,165.58,2.6035]
[1730479444562,23.1710514,165.65,165.54,4.291]
[1730479444563,3.0202,165.59,165.54,4.291]
[1730479444753,0.9059,165.69,165.52,2.5955]
[1730479444754,23.1710514,165.6,165.52,2.5955]
[1730479444955,3.0205,165.58,165.52,2.5955]
[1730479445156,23.1710514,165.57,165.49,3.05207199]
[1730479445552,23.1710514,165.6,165.47,3.8786]
[1730479445867,23.1710514,165.6,165.48,8.49438952]
[1730479446264,23.1710514,165.6,165.48,5.4]
[1730479446563,23.1710514,165.6,165.49,23.1710514]
[1730479446960,23.1710514,165.63,165.49,23.1710514]
[1730479447756,23.1710514,165.6,165.48,5.4]
[1730479447962,23.1710514,165.57,165.47,3.8786]
[1730479448158,23.1710514,165.55,165.47,3.8786]
[1730479449580,3.0216,165.52,165.46,3.0224]
[1730479449780,3.0216,165.52,165.43,3.00132517]
[1730479449781,23.1710514,165.49,165.44,2.5892]
[1730479449970,23.1710514,165.49,165.41,5.4]
[1730479450178,3.0228,165.46,165.41,5.4]
[1730479450477,23.1710514,165.47,165.37,7.9892]
[1730479450678,3.0229,165.45,165.39,3.0237]
[1730479450984,3.0229,165.45,165.37,7.9892]
[1730479451185,23.1710514,165.47,165.37,7.9892]
[1730479451883,26.1934514,165.47,165.42,3.0233]
[1730479452180,26.1934514,165.47,165.37,7.9892]
[1730479452181,23.1710514,165.47,165.37,7.9892]
[1730479452383,3.0227,165.46,165.4,3.0237]
[1730479452576,23.1710514,165.47,165.37,2.5892]
[1730479453081,3.0233,165.42,165.37,2.5892]
[1730479453273,23.1710514,165.44,165.37,2.5892]
[1730479453578,3.03797369,165.55,165.37,2.5892]
[1730479453579,23.1710514,165.56,165.4,23.1710514]
[1730479453773,23.1710514,165.56,165.35,28.5710514]
[1730479453774,23.1710514,165.56,165.43,23.1710514]
[1730479453974,3.0207,165.57,165.51,3.0215]
[1730479454169,23.1710514,165.59,165.44,5.4]
[1730479454374,23.1710514,165.59,165.43,23.1710514]
[1730479454577,23.1710514,165.56,165.43,28.5710514]
[1730479454783,23.1710514,165.59,165.43,28.5710514]
[1730479454975,23.1710514,165.59,165.46,23.1710514]
[1730479455174,23.1710514,165.59,165.47,1.3079]
[1730479455581,3.0206,165.57,165.47,1.3079]
[1730479455978,23.1710514,165.59,165.47,1.3079]
[1730479456379,3.0205,165.58,165.52,3.0214]
[1730479456583,23.1710514,165.59,165.5,5.4]
[1730479456781,3.0196,165.63,165.51,2.6868]
[1730479456976,23.1710514,165.64,165.52,26.21655961]
[1730479457276,3.0202,165.59,165.53,3.0213]
[1730479457477,23.1710514,165.61,165.51,2.6868]
[1730479458483,3.0204,165.58,165.52,3.0215]
[1730479458675,23.1710514,165.61,165.51,2.6868]
[1730479458880,3.02,165.6,165.54,3.021]
[1730479459073,23.1710514,165.61,165.51,2.6868]
[1730479459379,23.1710514,165.61,165.52,5.4]
[1730479459781,3.0201,165.6,165.54,3.021]
[1730479460087,23.1710514,165.64,165.52,5.4]
[1730479460276,0.9131,165.72,165.62,3.0195]
[1730479460277,3.0186,165.68,165.62,3.0195]
[1730479460482,23.1710514,165.69,165.62,3.0195]
[1730479460681,23.1710514,165.69,165.6,5.4]
[1730479461187,23.1710514,165.66,165.6,5.4]
[1730479462286,23.1710514,165.69,165.6,5.4]
[1730479462487,3.0191,165.66,165.61,3.0198]
[1730479463484,3.0189,165.66,165.62,3.0196]
[1730479463781,23.1710514,165.69,165.6,5.4]
[1730479464184,3.019,165.66,165.62,3.0195]
[1730479464380,3.019,165.66,165.51,24.5578514]
[1730479464381,23.1710514,165.66,165.54,23.1710514]
[1730479464576,23.1710514,165.63,165.52,2.7255]
[1730479464783,3.0206,165.57,165.52,2.7255]
[1730479464987,23.1710514,165.6,165.52,2.7255]
[1730479465378,3.0205,165.58,165.53,3.0211]
[1730479465578,23.1710514,165.63,165.52,2.7255]
[1730479465789,23.1710514,165.65,165.52,2.7255]
[1730479466383,3.0198,165.62,165.57,3.0205]
[1730479466687,3.0198,165.62,165.58,5.38]
[1730479467285,23.1710514,165.65,165.58,5.38]
[1730479467487,23.1710514,165.68,165.58,5.38]
[1730479467687,23.1710514,165.68,165.54,23.1710514]
[1730479467888,3.0189,165.67,165.62,3.0196]
[1730479468088,23.1710514,165.71,165.62,5.38]
[1730479469790,23.1710514,165.71,165.62,8.3995]
[1730479469989,3.019,165.66,165.62,8.3995]
[1730479470290,3.019,165.66,165.63,3.0194]
[1730479470491,3.019,165.66,165.62,5.38]
[1730479470492,23.1710514,165.71,165.62,5.38]
[1730479471789,23.1710514,165.74,165.62,28.5510514]
[1730479472001,3.0182,165.7,165.62,28.5510514]
[1730479472297,23.1710514,165.76,165.62,5.38]
[1730479472504,3.0177,165.73,165.64,23.1710514]
[1730479472796,24.0002514,165.79,165.67,23.1710514]
[1730479473000,24.0002514,165.79,165.71,3.0179]
[1730479473199,3.0173,165.75,165.71,8.3979]
[1730479474094,3.0173,165.75,165.42,36.42589306]
[1730479474095,3.0185,165.69,165.66,5.38]
[1730479475910,23.1710514,165.73,165.66,5.38]
[1730479475911,3.0183,165.7,165.66,5.38]
[1730479476294,0.8292,165.79,165.63,5.38]
[1730479476295,23.1710514,165.71,165.63,5.38]
[1730479476501,29.2051514,165.77,165.54,23.1710514]
[1730479476502,23.1710514,165.68,165.54,23.1710514]
[1730479476702,23.1710514,165.65,165.55,1.3188]
[1730479476998,23.1710514,165.65,165.56,5.38]
[1730479477405,23.1710514,165.65,165.57,3.0205]
[1730479477602,0.0788,165.7,165.58,23.1710514]
[1730479477603,23.2498514,165.7,165.58,23.1710514]
[1730479477797,23.2498514,165.7,165.58,26.13098719]
[1730479478004,3.0189,165.66,165.62,3.0196]
[1730479478205,23.1710514,165.7,165.58,26.13098719]
[1730479479101,3.0191,165.66,165.61,3.0197]
[1730479479503,3.0191,165.66,165.58,23.1710514]
[1730479479708,0.0788,165.74,165.58,23.1710514]
[1730479479709,23.1710514,165.73,165.58,23.1710514]
[1730479479907,0.0788,165.74,165.61,23.1710514]
[1730479480102,0.0788,165.74,165.62,2.5871]
[1730479480299,0.8287,165.75,165.63,5.38]
[1730479480497,0.8287,165.75,165.64,23.1710514]
[1730479480711,0.8287,165.75,165.63,6.6785]
[1730479480901,23.1710514,165.74,165.63,6.6785]
[1730479481302,0.8287,165.75,165.63,6.6785]
[1730479481303,3.019,165.66,165.63,8.3995]
[1730479481504,23.1710514,165.71,165.63,5.38]
[1730479481907,23.1710514,165.74,165.63,5.38]
[1730479482503,3.0183,165.7,165.66,3.0188]
[1730479482699,23.1710514,165.74,165.63,5.38]
[1730479482903,23.1710514,165.71,165.63,5.38]
[1730479483611,3.0192,165.65,165.63,5.38]
[1730479484110,23.1710514,165.71,165.63,5.38]
[1730479484711,3.0185,165.69,165.64,3.0192]
[1730479484904,23.1710514,165.71,165.64,3.0192]
[1730479485106,23.1710514,165.71,165.63,5.38]
[1730479486510,3.0193,165.64,165.63,5.38]
[1730479486712,23.1710514,165.71,165.63,5.38]
[1730479487111,3.0187,165.68,165.64,3.0192]
[1730479487416,23.1710514,165.71,165.64,3.0192]
[1730479487618,23.1710514,165.73,165.63,5.38]
[1730479488013,3.0187,165.68,165.65,3.0191]
[1730479488213,23.1710514,165.73,165.63,5.38]
[1730479488419,0.8287,165.75,165.64,2.5983]
[1730479488621,0.8287,165.75,165.64,25.7693514]
[1730479489220,3.0181,165.71,165.68,3.0185]
[1730479489615,3.0177,165.73,165.7,3.0181]
[1730479489915,23.2505514,165.79,165.7,5.38]
[1730479490123,10.83777518,165.78,165.7,5.38]
[1730479490316,0.8266,165.8,165.7,5.38]
[1730479490509,23.1710514,165.81,165.7,5.38]
[1730479490713,3.0177,165.73,165.7,5.38]
[1730479490910,10.83311782,165.8,165.7,5.38]
[1730479491116,23.1710514,165.81,165.7,5.38]
[1730479491314,3.017,165.77,165.73,3.0175]
[1730479492118,0.8266,165.82,165.7,5.38]
[1730479492418,0.0776,165.83,165.76,3.0171]
[1730479492626,10.8235812,165.83,165.7,5.38]
[1730479493119,3.0169,165.78,165.74,3.0175]
[1730479493323,10.8235812,165.83,165.7,5.38]
[1730479493510,10.8235812,165.83,165.72,23.1710514]
[1730479493715,3.0162,165.81,165.77,3.0168]
[1730479493918,23.1710514,165.84,165.77,5.38]
[1730479494116,23.9979514,165.86,165.77,5.38]
[1730479494313,3.0161,165.82,165.78,3.0166]
[1730479494514,3.0161,165.82,165.77,5.38]
[1730479494717,23.2480514,165.89,165.77,5.38]
[1730479494923,3.0159,165.83,165.79,3.0164]
[1730479495419,3.0159,165.83,165.77,5.38]
[1730479495621,23.2480514,165.89,165.77,5.38]
[1730479495622,3.0155,165.85,165.77,5.38]
[1730479495824,23.1710514,165.89,165.77,5.38]
[1730479496129,23.1710514,165.89,165.77,8.32827868]
[1730479496331,3.0156,165.85,165.77,8.32827868]
[1730479496731,0.8269,165.9,165.77,8.32827868]
[1730479496732,3.0152,165.87,165.83,3.0158]
[1730479497030,3.0152,165.87,165.79,23.1710514]
[1730479497328,3.0152,165.87,165.83,3.0157]
[1730479497630,9.13075839,165.95,165.84,5.36]
[1730479497631,23.1710514,165.94,165.84,5.36]
[1730479497830,23.1710514,165.94,165.85,5.36]
[1730479498033,3.0147,165.9,165.85,8.3754]
[1730479498529,3.0147,165.9,165.85,5.36]
[1730479498723,3.0149,165.89,165.85,5.36]
[1730479498929,23.1710514,165.94,165.85,5.36]
[1730479499131,23.1710514,165.94,165.86,3.0153]
[1730479499335,3.0147,165.9,165.86,3.0153]
[1730479501033,8.38055839,165.97,165.85,5.36]
[1730479501034,23.1710514,165.97,165.85,5.36]
[1730479501336,23.1710514,166.0,165.87,23.1710514]
[1730479501537,23.1710514,165.97,165.85,5.36]
[1730479502531,3.0144,165.92,165.88,3.0149]
[1730479502737,23.1710514,165.97,165.85,5.36]
[1730479502934,23.1710514,165.94,165.86,5.36]
[1730479503239,23.1710514,165.92,165.85,5.36]
[1730479504433,3.0152,165.87,165.85,5.36]
[1730479505841,3.0152,165.87,165.83,5.36]
[1730479506345,3.0152,165.87,165.84,3.0156]
[1730479506741,23.1710514,165.94,165.83,5.36]
[1730479506937,23.1710514,165.94,165.86,3.0152]
[1730479507139,8.30385839,165.96,165.83,5.36]
[1730479507441,17.19986453,165.96,165.86,3.0152]
[1730479507644,10.71421459,165.95,165.86,3.0152]
[1730479507836,11.96529983,165.96,165.86,3.0152]
[1730479507837,3.0147,165.9,165.86,3.0152]
[1730479508035,23.1710514,165.94,165.84,3.0155]
[1730479508234,23.1710514,165.94,165.85,5.36]
[1730479510141,23.1710514,165.94,165.87,3.015]
[1730479510952,3.0147,165.9,165.87,3.015]
[1730479511444,23.1710514,165.97,165.85,5.36]
[1730479511638,8.27948185,166.0,165.89,23.1710514]
[1730479511943,3.014,165.94,165.87,2.9677324]
[1730479512142,23.1710514,165.99,165.87,2.9677324]
[1730479512644,3.0136,165.96,165.91,3.0143]
[1730479512847,23.1710514,165.99,165.91,3.0143]
[1730479513448,3.0138,165.94,165.91,3.0143]
[1730479513640,23.1710514,165.94,165.81,23.1710514]
[1730479513838,6.8504,166.01,165.78,49.4733]
[1730479513839,23.1710514,165.91,165.83,5.36]
[1730479514047,23.1710514,165.91,165.82,2.6098]
[1730479514440,3.0157,165.84,165.82,2.6098]
[1730479514646,23.1710514,165.89,165.82,2.6098]
[1730479514845,3.0161,165.82,165.79,5.36]
[1730479515145,23.1710514,165.84,165.79,5.36]
[1730479515549,23.1710514,165.86,165.79,5.36]
[1730479518348,3.0163,165.81,165.79,5.36]
[1730479518743,23.1710514,165.86,165.79,5.36]
[1730479518944,23.1710514,165.86,165.79,8.3765]
[1730479519542,23.1710514,165.86,165.79,5.36]
[1730479519543,3.0164,165.8,165.79,5.36]
[1730479519752,23.1710514,165.84,165.74,8.0127]
[1730479519952,23.1710514,165.84,165.74,2.6527]
[1730479519953,23.1710514,165.81,165.74,2.6527]
[1730479520251,23.1710514,165.78,165.7,5.36]
[1730479520654,3.0176,165.74,165.7,5.36]
[1730479520850,23.1710514,165.78,165.69,5.36]
[1730479521050,3.0182,165.7,165.69,5.36]
[1730479521249,23.1710514,165.75,165.69,5.36]
[1730479521756,3.018,165.71,165.66,5.36]
[1730479522352,23.1710514,165.75,165.62,25.8527514]
[1730479522353,23.1710514,165.72,165.62,2.6817]
[1730479522854,23.1710514,165.72,165.63,3.0194]
[1730479523058,23.1710514,165.7,165.57,1.2699]
[1730479523246,23.1710514,165.67,165.56,43.44]
[1730479523450,3.02,165.61,165.57,3.0206]
[1730479523951,23.1710514,165.65,165.56,5.36]
[1730479524848,3.0198,165.61,165.56,8.3807]
[1730479525158,23.1710514,165.69,165.56,5.36]
[1730479525357,3.0198,165.62,165.56,8.3806]
[1730479525560,23.1710514,165.66,165.56,5.36]
[1730479525856,0.8995,165.74,165.6,23.1710514]
[1730479526162,0.8243,165.74,165.63,23.1710514]
[1730479526351,0.8243,165.74,165.64,5.36]
[1730479526848,0.0752,165.79,165.64,5.36]
[1730479527554,23.1710514,165.78,165.65,23.1710514]
[1730479528244,23.1710514,165.75,165.64,5.36]
[1730479528444,3.0188,165.67,165.64,5.36]
[1730479528652,37.67834773,165.74,165.64,5.36]
[1730479529251,37.67834773,165.72,165.64,5.36]
[1730479529556,3.0188,165.67,165.64,5.36]
[1730479530350,37.67834773,165.72,165.64,5.36]
[1730479530555,3.0184,165.69,165.64,5.36]
[1730479530757,37.67834773,165.75,165.64,5.36]
[1730479531253,37.67834773,165.75,165.67,3.0187]
[1730479531858,3.018,165.72,165.67,3.0187]
[1730479532051,37.67834773,165.75,165.64,5.36]
[1730479532256,3.0181,165.71,165.64,5.36]
[1730479532666,0.8265,165.74,165.66,3.0189]
[1730479532865,3.0183,165.7,165.64,5.36]
[1730479533058,37.67834773,165.72,165.65,3.0191]
[1730479533259,37.67834773,165.72,165.64,5.36]
[1730479533461,37.67834773,165.77,165.64,43.03834773]
[1730479534266,37.67834773,165.75,165.64,5.36]
[1730479534772,3.0182,165.7,165.64,5.36]
[1730479534959,37.67834773,165.72,165.64,5.36]
[1730479535159,37.67834773,165.72,165.61,2.5747]
[1730479535160,3.019,165.66,165.6,3.0199]
[1730479535363,37.67834773,165.69,165.56,43.03834773]
[1730479535564,37.67834773,165.72,165.58,37.67834773]
[1730479536160,37.67834773,165.75,165.61,37.67834773]
[1730479536363,3.0178,165.73,165.69,3.0183]
[1730479536763,37.67834773,165.77,165.69,3.0183]
[1730479537063,3.0178,165.73,165.69,3.0183]
[1730479537261,37.67834773,165.77,165.64,43.03834773]
[1730479537458,0.9017,165.79,165.66,37.67834773]
[1730479537654,37.67834773,165.8,165.66,37.67834773]
[1730479537860,37.67834773,165.82,165.66,37.67834773]
[1730479538057,3.0169,165.78,165.74,3.0173]
[1730479538468,37.67834773,165.82,165.71,5.36]
[1730479538668,37.67834773,165.85,165.73,37.67834773]
[1730479538970,63.50359265,165.88,165.73,37.67834773]
[1730479539670,37.67834773,165.9,165.76,37.67834773]
[1730479539971,37.67834773,165.96,165.81,37.67834773]
[1730479540160,37.67834773,165.96,165.84,37.67834773]
[1730479540365,3.82817756,166.01,165.85,1.3827]
[1730479540366,37.67834773,165.99,165.85,1.3827]
[1730479540662,37.67834773,165.96,165.85,1.3827]
[1730479540868,3.0142,165.93,165.88,3.0148]
[1730479541065,0.828,166.01,165.89,5.36]
[1730479541066,37.67834773,165.99,165.89,5.36]
[1730479541271,3.013,165.99,165.89,43.03834773]
[1730479541475,37.67834773,166.04,165.92,37.67834773]
[1730479541672,37.67834773,166.04,165.93,1.274]
[1730479541863,3.0128,166.0,165.94,3.0137]
[1730479542171,3.0128,166.0,165.93,1.274]
[1730479542364,37.67834773,166.07,165.93,1.274]
[1730479542675,37.67834773,166.07,165.93,2.6792]
[1730479542864,3.0122,166.03,165.95,3.0136]
[1730479543064,37.67834773,166.04,165.96,5.36]
[1730479544072,3.0132,165.98,165.93,1.274]
[1730479544274,37.67834773,166.01,165.93,1.274]
[1730479544572,3.0133,165.98,165.93,1.274]
[1730479544771,37.67834773,166.01,165.93,1.274]
[1730479545071,3.0124,166.02,165.93,1.274]
[1730479545375,37.67834773,166.07,165.97,3.0133]
[1730479545572,3.0122,166.03,165.94,37.67834773]
[1730479545776,37.67834773,166.07,165.94,37.67834773]
[1730479546081,37.67834773,166.1,165.98,3.013]
[1730479546376,3.0119,166.05,165.99,5.36]
[1730479546568,37.67834773,166.1,165.99,5.36]
[1730479547378,37.67834773,166.13,166.0,37.67834773]
[1730479547674,37.67834773,166.15,166.0,40.32744773]
[1730479547871,3.0111,166.09,166.04,3.012]
[1730479548072,37.67834773,166.1,166.01,5.36]
[1730479550166,3.0122,166.04,166.01,5.36]
[1730479550374,37.67834773,166.07,166.01,5.36]
[1730479550573,37.67834773,166.07,165.96,5.36]
[1730479551070,37.67834773,166.05,165.95,5.36]
[1730479551274,37.67834773,166.07,165.95,5.36]
[1730479551575,37.67834773,166.07,165.95,8.3736]
[1730479551770,37.67834773,166.07,165.95,5.36]
[1730479551970,3.0129,166.0,165.95,5.36]
[1730479552375,37.67834773,166.04,165.95,5.36]
[1730479552577,3.0132,165.98,165.95,5.36]
[1730479553075,3.0127,166.01,165.95,8.3735]
[1730479553279,37.67834773,166.04,165.95,8.3735]
[1730479553673,3.0125,166.02,165.95,8.3735]
[1730479553978,37.67834773,166.04,165.95,8.3735]
[1730479554277,37.67834773,166.04,165.93,1.274]
[1730479554482,37.67834773,166.02,165.93,6.614]
[1730479555070,3.0138,165.94,165.93,6.614]
[1730479555270,37.67834773,166.02,165.93,6.614]
[1730479555879,3.0129,166.0,165.93,6.614]
[1730479556080,37.67834773,166.02,165.93,6.614]
[1730479556882,37.67834773,166.04,165.93,6.614]
[1730479557083,3.0135,165.96,165.93,9.628]
[1730479557269,3.0135,165.96,165.93,6.614]
[1730479557874,3.0135,165.96,165.88,1.3325]
[1730479557875,3.0142,165.92,165.88,1.3325]
[1730479558185,3.0142,165.92,165.89,5.34]
[1730479558479,37.67834773,165.98,165.89,5.34]
[1730479558682,3.0141,165.93,165.89,5.34]
[1730479559083,3.0143,165.92,165.89,5.34]
[1730479559278,37.67834773,166.01,165.89,43.01834773]
[1730479559676,3.0133,165.98,165.89,43.01834773]
[1730479559886,0.8242,166.06,165.92,37.67834773]
[1730479560186,0.8242,166.06,165.97,3.0133]
[1730479560377,3.0131,165.99,165.96,5.34]
[1730479560578,0.8242,166.06,165.96,5.34]
[1730479560982,37.67834773,166.07,165.96,5.34]
[1730479561177,37.67834773,166.1,165.96,5.34]
[1730479561390,3.0122,166.03,165.97,39.04074773]
[1730479561903,37.67834773,166.1,165.97,39.04074773]
[1730479562103,3.0116,166.07,166.0,37.67834773]
[1730479562303,37.67834773,166.13,165.98,1.2879]
[1730479562691,3.012,166.04,165.98,1.2879]
[1730479562891,37.67834773,166.1,166.01,3.0125]
[1730479563098,3.012,166.05,166.01,3.0125]
[1730479563608,37.67834773,166.1,165.98,4.3009]
[1730479563906,37.67834773,166.1,165.99,5.34]
[1730479564302,37.67834773,166.1,165.99,8.3528]
[1730479564499,37.67834773,166.1,165.99,5.34]
[1730479565007,37.67834773,166.13,166.0,37.67834773]
[1730479565503,3.0116,166.07,166.03,3.0121]
[1730479565698,37.67834773,166.13,166.03,3.0121]
[1730479566514,37.67834773,166.1,166.01,3.0126]
[1730479566995,3.012,166.05,166.01,3.0126]
[1730479567308,37.67834773,166.1,165.99,5.34]
[1730479567510,3.0118,166.06,165.99,5.34]
[1730479567694,3.0118,166.06,166.03,3.0121]
[1730479567896,37.67834773,166.15,166.03,37.67834773]
[1730479568105,37.67834773,166.15,166.04,1.3235]
[1730479568503,3.0114,166.08,166.04,1.3235]
[1730479568805,37.67834773,166.15,166.04,1.3235]
[1730479569001,37.67834773,166.12,166.04,1.3235]
[1730479569205,3.0116,166.07,166.04,1.3235]
[1730479569406,37.67834773,166.12,166.03,3.0121]
[1730479569598,3.0114,166.08,166.01,1.3235]
[1730479569911,37.67834773,166.15,166.01,1.3235]
[1730479570602,37.67834773,166.15,166.05,3.0118]
[1730479570801,3.0113,166.09,166.05,3.0118]
[1730479571012,3.0113,166.09,166.06,5.34]
[1730479571303,8.21687341,166.19,166.06,43.01834773]
[1730479571511,13.44114977,166.19,166.07,2.6649]
[1730479571696,86.90192102,166.2,166.09,3.0111]
[1730479571899,3.0105,166.13,166.09,3.0111]
[1730479572195,86.90192102,166.2,166.08,3.0112]
[1730479572397,3.0106,166.12,166.08,3.0112]
[1730479573203,3.0106,166.12,166.07,2.6649]
[1730479573204,3.0106,166.12,166.09,3.0111]
[1730479573509,46.70584773,166.2,166.07,2.6649]
[1730479573510,8.21687341,166.18,166.07,2.6649]
[1730479573717,8.21687341,166.19,166.11,3.0106]
[1730479573899,3.0102,166.15,166.11,3.0106]
[1730479574098,8.21687341,166.19,166.1,3.0108]
[1730479574304,13.40779897,166.19,166.08,37.67834773]
[1730479574608,8.21687341,166.17,166.09,1.3359]
[1730479574904,13.40779897,166.17,166.12,3.0105]
[1730479575101,5.19092556,166.16,166.13,5.34]
[1730479575301,8.21687341,166.19,166.13,5.34]
[1730479575507,13.41786005,166.19,166.13,5.34]
[1730479575811,5.20098664,166.18,166.13,5.34]
[1730479576012,8.21687341,166.2,166.13,5.34]
[1730479576307,13.4176683,166.2,166.13,5.34]
[1730479576511,3.0098,166.17,166.13,5.34]
[1730479577408,8.21687341,166.21,166.13,5.34]
[1730479577608,8.21687341,166.19,166.13,5.34]
[1730479577808,8.21687341,166.2,166.13,5.34]
[1730479578006,3.01,166.16,166.13,5.34]
[1730479578208,8.21687341,166.21,166.13,5.34]
[1730479578407,59.59001017,166.23,166.13,5.34]
[1730479578408,3.0094,166.19,166.15,3.0099]
[1730479578805,8.21687341,166.22,166.13,5.34]
[1730479579011,13.41296108,166.23,166.14,37.67834773]
[1730479579210,38.50294773,166.26,166.14,37.67834773]
[1730479579211,8.21687341,166.24,166.14,37.67834773]
[1730479579406,13.40908884,166.25,166.16,3.0097]
[1730479579607,3.0091,166.21,166.13,5.34]
[1730479579913,38.50294773,166.26,166.14,37.67834773]
[1730479580107,38.50294773,166.26,166.14,3.0101]
[1730479580307,3.0096,166.18,166.13,5.34]
[1730479580506,37.67834773,166.23,166.13,5.34]
[1730479580710,37.67834773,166.23,166.09,1.3359]
[1730479580711,3.0102,166.14,166.09,24.46518237]
[1730479581006,23.12928237,166.23,166.1,5.34]
[1730479581207,23.12928237,166.23,166.12,3.0104]
[1730479581912,23.12928237,166.23,166.1,5.34]
[1730479581913,5.18503808,166.22,166.1,5.34]
[1730479582117,23.12928237,166.2,166.11,5.34]
[1730479582307,23.12928237,166.17,166.09,1.3359]
[1730479582806,8.21687341,166.21,166.09,24.46518237]
[1730479583008,3.0103,166.14,166.1,3.0109]
[1730479583214,8.21687341,166.21,166.1,3.0109]
[1730479584011,3.0105,166.13,166.1,3.0109]
[1730479584209,31.34615578,166.2,166.09,1.3359]
[1730479584416,13.40077553,166.19,166.09,1.3359]
[1730479584610,3.0109,166.11,166.09,1.3359]